fUSD/lending_fUSD_20250620
["ID","MTS","AMOUNT","RATE_DAILY","PERIOD"]
[366753773,1750433169774,-218.13,0.00043,120]
[366753774,1750433169801,-200.0,0.00043,120]
[366753775,1750433169827,-15000.0,0.00043,120]
[366753776,1750433169859,-15000.0,0.00043,120]
[366753777,1750433169887,-15000.0,0.00043,120]
[366753778,1750433169916,-7269.0,0.00043,120]
[366753779,1750433169943,-159.0,0.00043151,90]
[366753780,1750433169972,-268.4859514,0.0004329,120]
[366753781,1750433170000,-15000.0,0.0004337,120]
[366753782,1750433170028,-2467.65,0.0004337,120]
[366753783,1750433170059,-13821.02,0.00043384,120]
[366753784,1750433170085,-500000.0,0.000434,120]
[366753785,1750433170113,-3719942.70106324,0.0004342,120]
[366753788,1750433174776,606.45325095,0.00025,2]
[366753789,1750433180283,-2105.41764886,0.00041869,60]
[366753790,1750433180312,-2183.31810187,0.00041869,60]
[366753791,1750433180339,-2264.10087164,0.00041869,60]
[366753792,1750433180366,-2347.87260389,0.00041869,60]
[366753793,1750433180394,-2434.74389024,0.00041869,60]
[366753794,1750433180422,-2524.82941417,0.00041869,60]
[366753795,1750433180449,-2618.2481025,0.00041869,60]
[366753796,1750433180477,-2715.12328229,0.00041869,60]
[366753797,1750433180505,-2815.58284374,0.00041869,60]
[366753798,1750433180532,-2919.75940895,0.00041869,60]
[366753799,1750433180561,-3027.79050709,0.00041869,60]
[366753800,1750433180588,-3139.81875585,0.00041869,60]
[366753801,1750433180616,-3255.99204981,0.00041869,60]
[366753802,1750433180643,-3376.46375566,0.00041869,60]
[366753803,1750433180671,-3501.39291462,0.00041869,60]
[366753804,1750433180699,-2273.54513902,0.00041869,60]
[366753805,1750433180727,-20144.24,0.00041978,120]
[366753806,1750433180752,-153.88421641,0.00041999,120]
[366753807,1750433180778,-151.0,0.00041999,120]
[366753808,1750433180804,-500.0,0.00041999,120]
[366753809,1750433180831,-223.0315306,0.00041999,120]
[366753810,1750433180857,-500.0,0.00041999,120]
[366753811,1750433180883,-171.77755968,0.00041999,120]
[366753812,1750433180910,-231.28369723,0.00041999,120]
[366753813,1750433180937,-500.0,0.00041999,120]
[366753814,1750433180963,-239.84119403,0.00041999,120]
[366753815,1750433180996,-500.0,0.00041999,120]
[366753816,1750433181027,-248.71531821,0.00041999,120]
[366753817,1750433181054,-500.0,0.00041999,120]
[366753818,1750433181082,-437.83457863,0.00041999,120]
[366753819,1750433181108,-500.0,0.00041999,120]
[366753820,1750433181135,-257.91778498,0.00041999,120]
[366753821,1750433181162,-500.0,0.00041999,120]
[366753822,1750433181189,-267.46074303,0.00041999,120]
[366753823,1750433181215,-500.0,0.00041999,120]
[366753824,1750433181240,-277.35679052,0.00041999,120]
[366753825,1750433181267,-500.0,0.00041999,120]
[366753826,1750433181293,-287.61899177,0.00041999,120]
[366753827,1750433181320,-151.0,0.00041999,120]
[366753828,1750433181347,-500.0,0.00041999,120]
[366753829,1750433181375,-500.0,0.00041999,120]
[366753830,1750433181402,-151.0,0.00041999,120]
[366753831,1750433181429,-298.26089446,0.00041999,120]
[366753832,1750433181456,-500.0,0.00041999,120]
[366753833,1750433181484,-500.0,0.00041999,120]
[366753834,1750433181511,-309.29654756,0.00041999,120]
[366753835,1750433181539,-500.0,0.00041999,120]
[366753836,1750433181569,-252.17512863,0.00041999,120]
[366753837,1750433181597,-320.74051982,0.00041999,120]
[366753838,1750433181625,-500.0,0.00041999,120]
[366753839,1750433181654,-500.0,0.00041999,120]
[366753840,1750433181681,-332.60791905,0.00041999,120]
[366753841,1750433181709,-500.0,0.00041999,120]
[366753842,1750433181738,-500.0,0.00041999,120]
[366753843,1750433181765,-344.91441206,0.00041999,120]
[366753844,1750433181794,-500.0,0.00041999,120]
[366753845,1750433181822,-500.0,0.00041999,120]
[366753846,1750433181850,-357.6762453,0.00041999,120]
[366753847,1750433181877,-500.0,0.00041999,120]
[366753848,1750433181905,-500.0,0.00041999,120]
[366753849,1750433181932,-370.91026638,0.00041999,120]
[366753850,1750433181959,-500.0,0.00041999,120]
[366753851,1750433181988,-500.0,0.00041999,120]
[366753852,1750433182016,-384.63394623,0.00041999,120]
[366753853,1750433182044,-500.0,0.00041999,120]
[366753854,1750433182075,-1279815.51893676,0.0004342,120]
[366753855,1750433182103,-161.25,0.00043427,120]
[366753856,1750433182131,-5000.0,0.0004349,120]
[366753857,1750433182157,-272269.35775866,0.000435,120]
[366753858,1750433182184,-60000.000001,0.000435,120]
[366753859,1750433182211,-329.38097333,0.00043589,120]
[366753860,1750433182236,-5000.0,0.000436,120]
[366753861,1750433182263,-22500.0,0.000436,120]
[366753862,1750433182288,-1302.96,0.000436,120]
[366753863,1750433182314,-8756.79,0.000436,120]
[366753864,1750433182342,-244.44,0.000436,120]
[366753865,1750433182369,-22477.67,0.000436,120]
[366753866,1750433182395,-22500.0,0.000436,120]
[366753867,1750433182423,-200.0,0.00043602,120]
[366753868,1750433182450,-200.0,0.00043605,120]
[366753869,1750433182478,-200.0,0.00043618,120]
[366753870,1750433182505,-394.19160954,0.00043619,120]
[366753871,1750433182534,-2923.13807308,0.00043628,120]
[366753872,1750433182560,-200.0,0.00043629,120]
[366753873,1750433182588,-311.59227956,0.00043629,120]
[366753874,1750433182827,-200.0,0.00043632,120]
[366753875,1750433182856,-1302.85402461,0.00043632,120]
[366753876,1750433182884,-200.0,0.00043654,120]
[366753877,1750433182911,-1302.85402461,0.00043678,120]
[366753878,1750433182939,-200.0,0.00043691,120]
[366753879,1750433182966,-200.0,0.00043692,120]
[366753880,1750433182997,-490.82643211,0.00043698,120]
[366753881,1750433183023,-2505.48784809,0.000437,120]
[366753882,1750433183056,-200.0,0.000437,120]
[366753883,1750433183088,-1302.85402461,0.00043718,120]
[366753884,1750433183115,-2923.13807308,0.00043728,120]
[366753885,1750433183144,-311.59227956,0.00043736,120]
[366753886,1750433183171,-311.59227956,0.00043737,120]
[366753887,1750433183198,-15000.0,0.0004374,120]
[366753888,1750433183225,-394.19160954,0.00043747,120]
[366753889,1750433183251,-490.82643211,0.00043759,120]
[366753890,1750433183280,-2923.13807308,0.0004376,120]
[366753891,1750433183306,-200.0,0.00043764,120]
[366753892,1750433183335,-490.82643211,0.00043766,120]
[366753893,1750433183363,-11108.58662988,0.0004377,60]
[366753894,1750433183389,-1302.85402461,0.00043771,120]
[366753895,1750433183416,-490.82643211,0.00043779,120]
[366753896,1750433183445,-311.59227956,0.00043791,120]
[366753897,1750433183473,-394.19160954,0.00043791,120]
[366753898,1750433183500,-200.0,0.00043795,120]
[366753899,1750433183527,-11417.95368046,0.000438,119]
[366753900,1750433183554,-4559.39031952,0.000438,119]
[366753901,1750433183583,-311.62264695,0.000438,120]
[366753902,1750433183610,-1736.9144301,0.000438,90]
[366753903,1750433183637,-509.0,0.000438,120]
[366753904,1750433183663,-1855.66470608,0.000438,60]
[366753905,1750433183690,-223.36,0.000438,120]
[366753906,1750433183719,-329.38097333,0.00043803,120]
[366753907,1750433183746,-200.0,0.00043803,120]
[366753908,1750433183773,-329.38097333,0.00043814,120]
[366753909,1750433183802,-2923.13807308,0.0004383,120]
[366753910,1750433183829,-329.38097333,0.0004383,120]
[366753911,1750433183856,-1000.0,0.00043835,60]
[366753912,1750433183882,-8685.7,0.00043835,60]
[366753913,1750433183910,-200.0,0.00043835,120]
[366753914,1750433183936,-500.0,0.00043836,60]
[366753915,1750433183963,-500.0,0.00043836,60]
[366753916,1750433183995,-500.0,0.00043836,60]
[366753917,1750433184021,-500.0,0.00043836,60]
[366753918,1750433184047,-500.0,0.00043836,60]
[366753919,1750433184074,-500.0,0.00043836,60]
[366753920,1750433184101,-500.0,0.00043836,60]
[366753921,1750433184127,-500.0,0.00043836,60]
[366753922,1750433184718,398.86540225,0.00041999,120]
[366753923,1750433184788,500.0,0.00041999,120]
[366753924,1750433184878,500.0,0.00041999,120]
[366753925,1750433185023,596.27,0.0004292,120]
[366753926,1750433185160,500.0,0.00041999,120]
[366753927,1750433185320,500.0,0.00041999,120]
[366753928,1750433185393,606.85451761,0.00041999,120]
[366753929,1750433185752,151.0,0.00043836,60]
[366753930,1750433185793,19994.04,0.0004292,120]
[366753931,1750433185831,151.0,0.00043836,60]
[366753932,1750433185878,8301.37396575,0.00038284,120]
[366753933,1750433185928,151.0,0.00043836,60]
[366753934,1750433186078,151.0,0.00043836,60]
[366753935,1750433186297,500.0,0.00043836,60]
[366753936,1750433186377,180.23886744,0.00043836,60]
[366753937,1750433186904,500.0,0.00043836,60]
[366753938,1750433187454,1359.00379517,0.0004292,120]
[366753939,1750433187696,500.0,0.00043836,60]
[366753940,1750433188319,507.41038376,0.00043836,60]
[366753945,1750433192271,20351.95,0.0004292,120]
[366753947,1750433193421,6993.81684261,0.00041,120]
[366753980,1750433202685,8923.12888619,0.00019333,2]
[366753981,1750433202734,7335.15996867,0.00019333,2]
[366753987,1750433223317,2664.84003133,0.00024,5]
[366754001,1750433245075,3129.78915818,0.0001305,2]
[366754006,1750433272134,5000.0,0.0002,2]
[366754016,1750433310180,1880.19890045,0.0001,2]
[366754018,1750433312013,325.78853943,7.888e-05,2]
[366754019,1750433312041,55.49728615,7.888e-05,2]
[366754034,1750433326100,261.15391395,0.000107,2]
[366754040,1750433330659,1363.76373838,0.00010136,2]
[366754042,1750433331305,32047.42656924,0.00013368,2]
[366754044,1750433332604,1007.44550969,0.000194,2]
[366754052,1750433334141,44269.87054433,0.000194,2]
[366754053,1750433334170,117172.797821,0.000194,2]
[366754054,1750433334195,118303.937821,0.000194,2]
[366754055,1750433334222,57869.51597,0.000194,2]
[366754056,1750433334254,375066.44451935,0.000194,2]
[366754114,1750433432332,-352.11385569,0.00023976,2]
[366754115,1750433432343,-67.52191445,0.00024,5]
[366754116,1750433432382,-750.0,0.00024,5]
[366754117,1750433432395,-1517.64768615,0.00024,5]
[366754118,1750433432405,-204.35231385,0.00024325,2]
[366754119,1750433432419,-95.64768615,0.00024325,2]
[366754120,1750433432429,-203.0,0.0002453,2]
[366754121,1750433432440,-1562.77900123,0.0002453,2]
[366754145,1750433432667,-293.43163505,0.0002453,2]
[366754147,1750433432678,-1200.0,0.00024649,2]
[366754149,1750433432688,-3094.65351029,0.0002465,2]
[366754151,1750433432698,-300.0,0.00024827,2]
[366754153,1750433432708,-7034.63139572,0.00025,2]
[366754155,1750433432718,-2001.0,0.00025001,2]
[366754158,1750433432728,-740.0,0.00025011,2]
[366754160,1750433432739,-23900.0,0.00025012,2]
[366754161,1750433432749,-231.47,0.00025012,2]
[366754163,1750433432760,-2791.88,0.00025061,2]
[366754166,1750433432771,-2795.26,0.00025088,2]
[366754169,1750433432782,-198.01019158,0.00025092,2]
[366754171,1750433432793,-874.01,0.00025192,2]
[366754173,1750433432803,-172.58,0.00025202,2]
[366754175,1750433432813,-1500.0,0.00025231,2]
[366754178,1750433432831,-4876.1,0.00025308,2]
[366754180,1750433432845,-1481.39370682,0.00025366,2]
[366754183,1750433432859,-371.02629318,0.00025366,2]
[366754185,1750433432870,-167.68482798,0.00025372,2]
[366754187,1750433432880,-200.0,0.00025444,2]
[366754189,1750433432890,-616.64498024,0.00025456,4]
[366754191,1750433432904,-11.21583176,0.00025456,4]
[366754194,1750433432914,-627.860812,0.00025457,4]
[366754196,1750433432924,-200.0,0.00025459,7]
[366754198,1750433432934,-627.860812,0.00025464,4]
[366754200,1750433432944,-3290.55,0.00025472,2]
[366754202,1750433432954,-150.0,0.00025479,2]
[366754204,1750433432966,-250.0,0.00025479,2]
[366754206,1750433432976,-627.860812,0.0002549,4]
[366754208,1750433432986,-208.41,0.00025492,2]
[366754210,1750433432997,-1000.0,0.00025497,2]
[366754212,1750433433011,-352.18,0.00025497,2]
[366754214,1750433433021,-627.860812,0.000255,4]
[366754216,1750433433032,-3256.71,0.00025519,2]
[366754218,1750433433044,-432.72960325,0.00025528,2]
[366754220,1750433433055,-627.860812,0.00025678,4]
[366754222,1750433433066,-834.11677829,0.00025723,2]
[366754224,1750433433078,-627.860812,0.0002573,4]
[366754226,1750433433089,-627.860812,0.00025731,4]
[366754228,1750433433099,-300.0,0.0002579,2]
[366754231,1750433433110,-170.87,0.00025791,2]
[366754233,1750433433121,-790.73282997,0.00025832,2]
[366754235,1750433433131,-936.98619214,0.00025838,2]
[366754237,1750433433142,-151.0,0.00025846,2]
[366754239,1750433433152,-151.0,0.00025846,2]
[366754241,1750433433162,-188.0,0.00025846,2]
[366754243,1750433433173,-1000.0,0.00025846,2]
[366754245,1750433433184,-1000.0,0.00025846,2]
[366754247,1750433433194,-1000.0,0.00025846,2]
[366754249,1750433433205,-1000.0,0.00025846,2]
[366754251,1750433433215,-1000.0,0.00025846,2]
[366754254,1750433433226,-1000.0,0.00025846,2]
[366754256,1750433433239,-1000.0,0.00025846,2]
[366754258,1750433433250,-1000.0,0.00025846,2]
[366754260,1750433433261,-1085.69820891,0.00025846,2]
[366754263,1750433433276,-168.0,0.00025893,2]
[366754266,1750433433287,-627.860812,0.000259,4]
[366754269,1750433433298,-1455.98257884,0.000259,14]
[366754272,1750433433309,-256.48,0.00025905,2]
[366754275,1750433433320,-421.1,0.00025937,2]
[366754278,1750433433331,-698.08,0.00026,2]
[366754281,1750433433342,-698.08,0.00026,2]
[366754284,1750433433353,-4433.65,0.00026,2]
[366754287,1750433433364,-627.860812,0.00026005,4]
[366754291,1750433433375,-151.41,0.00026027,2]
[366754294,1750433433386,-698.08,0.000261,2]
[366754296,1750433433397,-712.79082403,0.0002611,2]
[366754298,1750433433408,-203.0,0.00026142,4]
[366754300,1750433433419,-3041.2051019,0.000262,5]
[366754302,1750433433430,-653.46265132,0.00026207,2]
[366754305,1750433433442,-534.35005595,0.00026207,2]
[366754307,1750433433452,-500.0,0.00026207,2]
[366754309,1750433433463,-500.0,0.00026207,2]
[366754311,1750433433473,-500.0,0.00026207,2]
[366754313,1750433433484,-500.0,0.00026207,2]
[366754315,1750433433495,-500.0,0.00026207,2]
[366754317,1750433433507,-500.0,0.00026207,2]
[366754319,1750433433517,-500.0,0.00026207,2]
[366754321,1750433433528,-500.0,0.00026207,2]
[366754323,1750433433538,-500.0,0.00026207,2]
[366754325,1750433433549,-519.77502313,0.00026207,2]
[366754327,1750433433559,-500.0,0.00026207,2]
[366754329,1750433433570,-500.0,0.00026207,2]
[366754331,1750433433581,-500.0,0.00026207,2]
[366754333,1750433433592,-500.0,0.00026207,2]
[366754336,1750433433603,-500.0,0.00026207,2]
[366754338,1750433433613,-500.0,0.00026207,2]
[366754340,1750433433624,-508.95548857,0.00026207,2]
[366754342,1750433433636,-500.0,0.00026207,2]
[366754343,1750433433647,-518.55654573,0.00026207,2]
[366754346,1750433433658,-627.860812,0.00026279,4]
[366754348,1750433433670,-1000.0,0.000263,2]
[366754350,1750433433682,-1108.2341662,0.00026348,14]
[366754353,1750433433710,-347.74841241,0.00026348,14]
[366754355,1750433433721,-167.03,0.000264,5]
[366754357,1750433433732,-767.5608171,0.000264,2]
[366754360,1750433433754,-732.4391829,0.000264,2]
[366754361,1750433433765,-300.0,0.000264,2]
[366754363,1750433433775,-166.0,0.000264,4]
[366754365,1750433433786,-346.2047157,0.00026442,8]
[366754366,1750433433800,-298.86,0.00026442,8]
[366754367,1750433433813,-284.5000943,0.00026442,8]
[366754369,1750433433823,-153.82911775,0.000265,3]
[366754769,1750433437988,-359.474209,0.00023856,2]
[366754772,1750433437999,-227.34513266,0.00026238,2]
[366754775,1750433438014,-3.84756321,0.000265,3]
[366754780,1750433438026,-842.32331904,0.000265,3]
[366754782,1750433438035,-712.79082403,0.0002653,2]
[366754784,1750433438046,-168.45,0.00026539,2]
[366754786,1750433438056,-42.70714901,0.00026553,4]
[366754788,1750433438068,-585.15366299,0.00026553,4]
[366754790,1750433438083,-397.85265381,0.00026559,2]
[366754792,1750433438095,-393.43164105,0.00026559,2]
[366754795,1750433438108,-4397.55998089,0.00026559,2]
[366754797,1750433438117,-2500.0,0.00026599,2]
[366754799,1750433438127,-1000.0,0.000266,7]
[366754801,1750433438137,-1000.0,0.000266,6]
[366754803,1750433438147,-1000.0,0.000266,5]
[366754805,1750433438157,-1000.0,0.000266,3]
[366754807,1750433438166,-214.21727079,0.000266,7]
[366754811,1750433438196,-785.78272921,0.000266,7]
[366754813,1750433438206,-1000.0,0.000266,6]
[366754815,1750433438215,-352.79058341,0.000266,5]
[366754822,1750433438270,-647.20941659,0.000266,5]
[366754824,1750433438279,-752.79058341,0.000266,4]
[366754827,1750433438291,-247.20941659,0.000266,4]
[366754829,1750433438302,-695.0,0.000266,3]
[366754831,1750433438311,-372.75132131,0.000266,2]
[366754833,1750433438320,-559.93348692,0.00026612,10]
[366754835,1750433438330,-159.85626998,0.00026613,2]
[366754837,1750433438339,-675.37647409,0.00026613,2]
[366754839,1750433438351,-4107.05094924,0.00026613,2]
[366754841,1750433438361,-1165.36,0.00026613,2]
[366754843,1750433438370,-1000.0,0.00026614,2]
[366754845,1750433438380,-205.43857372,0.00026614,2]
[366754847,1750433438391,-11022.0389,0.00026615,2]
[366754849,1750433438401,-30194.1518,0.00026659,2]
[366754851,1750433438410,-155.16285594,0.00026659,8]
[366754853,1750433438420,-168.0,0.0002667,2]
[366754855,1750433438430,-372.75132127,0.00026687,2]
[366754858,1750433438440,-39536.52424751,0.00026699,7]
[366754860,1750433438450,-1000.0,0.000267,9]
[366754862,1750433438460,-1000.0,0.000267,8]
[366754864,1750433438469,-1000.0,0.000267,7]
[366754866,1750433438479,-1000.0,0.000267,6]
[366754868,1750433438489,-1000.0,0.000267,5]
[366754870,1750433438498,-1000.0,0.000267,4]
[366754872,1750433438508,-402.0,0.000267,12]
[366754874,1750433438518,-1000.0,0.000267,3]
[366754876,1750433438527,-1000.0,0.000267,4]
[366754878,1750433438537,-1000.0,0.000267,5]
[366754880,1750433438549,-1000.0,0.000267,9]
[366754882,1750433438558,-3441.43922736,0.00026703,2]
[366754884,1750433438568,-5162.15884104,0.00026704,2]
[366754886,1750433438578,-3500.0,0.0002671,2]
[366754888,1750433438587,-490.0,0.0002671,4]
[366754890,1750433438598,-490.0,0.0002671,4]
[366754892,1750433438607,-490.0,0.0002671,4]
[366754894,1750433438617,-490.0,0.0002671,4]
[366754896,1750433438626,-490.0,0.0002671,4]
[366754898,1750433438637,-490.0,0.0002671,4]
[366754900,1750433438647,-527.18720163,0.0002671,4]
[366754902,1750433438657,-490.0,0.00026711,4]
[366754904,1750433438667,-490.0,0.00026711,4]
[366754906,1750433438676,-490.0,0.00026711,4]
[366754908,1750433438685,-490.0,0.00026711,4]
[366754910,1750433438695,-490.0,0.00026711,4]
[366754912,1750433438706,-819.72,0.00026711,4]
[366754914,1750433438717,-490.0,0.00026711,4]
[366754917,1750433438727,-490.0,0.00026711,4]
[366754919,1750433438737,-490.0,0.00026711,4]
[366754921,1750433438751,-490.0,0.00026711,4]
[366754923,1750433438761,-490.0,0.00026711,4]
[366754925,1750433438771,-490.0,0.00026711,4]
[366754927,1750433438780,-490.0,0.00026711,4]
[366754929,1750433438790,-490.0,0.00026711,4]
[366754931,1750433438801,-490.0,0.00026711,4]
[366754933,1750433438811,-535.06,0.00026711,4]
[366754935,1750433438821,-490.0,0.00026711,4]
[366754937,1750433438831,-882.23,0.00026711,4]
[366754939,1750433438841,-490.0,0.00026711,4]
[366754941,1750433438851,-490.0,0.00026711,4]
[366754943,1750433438861,-824.69,0.00026711,4]
[366754945,1750433438871,-1237.51,0.00026711,4]
[366754947,1750433438880,-490.0,0.00026711,4]
[366754949,1750433438890,-490.0,0.00026711,4]
[366754951,1750433438899,-490.0,0.00026711,4]
[366754953,1750433438909,-490.0,0.00026711,4]
[366754955,1750433438919,-490.0,0.00026711,4]
[366754957,1750433438928,-1233.88424,0.00026711,4]
[366754959,1750433438938,-584.41,0.00026711,4]
[366754961,1750433438949,-490.0,0.00026712,4]
[366754963,1750433438959,-490.0,0.00026712,4]
[366754965,1750433438968,-490.0,0.00026712,4]
[366754967,1750433438978,-490.0,0.00026712,4]
[366754969,1750433438987,-490.0,0.00026712,4]
[366754971,1750433438997,-490.0,0.00026712,4]
[366754973,1750433439011,-490.0,0.00026712,4]
[366754975,1750433439021,-2330.37,0.00026712,4]
[366754977,1750433439032,-490.0,0.00026712,4]
[366754979,1750433439042,-1526.53,0.00026712,4]
[366754981,1750433439053,-490.0,0.00026712,4]
[366754983,1750433439063,-552.5,0.00026712,4]
[366754985,1750433439073,-490.0,0.00026712,4]
[366754987,1750433439083,-490.0,0.00026712,4]
[366754989,1750433439094,-671.36,0.00026712,4]
[366754991,1750433439103,-490.0,0.00026712,4]
[366754993,1750433439113,-490.0,0.00026712,4]
[366754995,1750433439122,-1015.34,0.00026712,4]
[366754997,1750433439131,-500.0,0.00026712,4]
[366754999,1750433439141,-618.32,0.00026712,4]
[366755001,1750433439150,-943.22,0.00026712,4]
[366755003,1750433439159,-490.0,0.00026712,4]
[366755005,1750433439169,-582.45,0.00026712,4]
[366755007,1750433439179,-1055.06,0.00026712,4]
[366755009,1750433439190,-896.94,0.00026712,4]
[366755011,1750433439200,-1930.58,0.00026712,4]
[366755013,1750433439210,-490.0,0.00026712,4]
[366755016,1750433439220,-871.96,0.00026712,4]
[366755018,1750433439229,-760.73,0.00026712,4]
[366755020,1750433439239,-490.0,0.00026712,4]
[366755022,1750433439249,-490.0,0.00026712,4]
[366755024,1750433439259,-490.0,0.00026712,4]
[366755026,1750433439268,-698.31,0.00026712,4]
[366755028,1750433439278,-578.2,0.00026712,4]
[366755030,1750433439288,-608.31,0.00026712,4]
[366755032,1750433439298,-490.0,0.00026713,4]
[366755034,1750433439307,-490.0,0.00026713,4]
[366755036,1750433439317,-490.0,0.00026713,4]
[366755038,1750433439327,-490.0,0.00026713,4]
[366755040,1750433439336,-490.0,0.00026713,4]
[366755042,1750433439346,-490.0,0.00026713,4]
[366755044,1750433439355,-655.44,0.00026713,4]
[366755046,1750433439365,-490.0,0.00026713,2]
[366755048,1750433439374,-573.88,0.00026713,4]
[366755050,1750433439384,-490.0,0.00026713,4]
[366755052,1750433439393,-490.0,0.00026713,4]
[366755054,1750433439403,-490.0,0.00026713,4]
[366755055,1750433439413,-661.82,0.00026713,4]
[366755057,1750433439423,-735.43,0.00026713,4]
[366755059,1750433439433,-490.0,0.00026713,4]
[366755062,1750433439444,-490.0,0.00026713,4]
[366755064,1750433439453,-547.29,0.00026713,4]
[366755066,1750433439463,-490.0,0.00026713,4]
[366755068,1750433439473,-549.83,0.00026713,4]
[366755070,1750433439483,-490.0,0.00026713,4]
[366755072,1750433439493,-490.0,0.00026713,4]
[366755074,1750433439503,-490.0,0.00026713,4]
[366755075,1750433439512,-490.0,0.00026713,4]
[366755078,1750433439522,-490.0,0.00026713,4]
[366755079,1750433439532,-503.03,0.00026713,4]
[366755082,1750433439543,-490.0,0.00026713,4]
[366755084,1750433439553,-490.0,0.00026713,4]
[366755085,1750433439563,-490.0,0.00026713,4]
[366755087,1750433439573,-490.0,0.00026713,4]
[366755089,1750433439583,-490.0,0.00026713,4]
[366755092,1750433439593,-490.0,0.00026713,4]
[366755094,1750433439603,-514.69,0.00026713,4]
[366755096,1750433439613,-1051.72,0.00026713,4]
[366755098,1750433439623,-490.0,0.00026713,4]
[366755099,1750433439633,-490.0,0.00026713,4]
[366755102,1750433439645,-490.0,0.00026713,4]
[366755104,1750433439655,-490.0,0.00026713,4]
[366755106,1750433439665,-997.69,0.00026713,4]
[366755108,1750433439675,-490.0,0.00026713,4]
[366755110,1750433439684,-490.0,0.00026713,4]
[366755112,1750433439694,-490.0,0.00026713,4]
[366755113,1750433439704,-220.98120075,0.00026713,4]
[366755116,1750433439714,-539.04790625,0.00026713,4]
[366755118,1750433439724,-490.0,0.00026713,4]
[366755119,1750433439733,-490.0,0.00026713,4]
[366755121,1750433439743,-524.07,0.00026713,4]
[366755123,1750433439754,-652.58,0.00026713,4]
[366755125,1750433439764,-490.0,0.00026713,4]
[366755127,1750433439774,-490.0,0.00026713,4]
[366755129,1750433439783,-490.0,0.00026713,4]
[366755131,1750433439793,-490.0,0.00026713,4]
[366755133,1750433439803,-490.0,0.00026713,4]
[366755135,1750433439812,-490.0,0.00026713,4]
[366755136,1750433439822,-490.0,0.00026713,4]
[366755137,1750433439832,-490.0,0.00026713,4]
[366755138,1750433439841,-490.0,0.00026713,4]
[366755139,1750433439851,-490.0,0.00026713,4]
[366755140,1750433439862,-490.0,0.00026713,4]
[366755141,1750433439872,-490.0,0.00026713,4]
[366755142,1750433439882,-490.0,0.00026713,4]
[366755143,1750433439892,-490.0,0.00026713,4]
[366755144,1750433439902,-490.0,0.00026713,4]
[366755145,1750433439912,-490.0,0.00026713,4]
[366755147,1750433439922,-532.03,0.00026713,4]
[366755149,1750433439931,-490.0,0.00026713,4]
[366755151,1750433439942,-827.08,0.00026713,4]
[366755153,1750433439951,-490.0,0.00026713,4]
[366755155,1750433439961,-490.0,0.00026713,4]
[366755157,1750433439971,-490.0,0.00026713,4]
[366755159,1750433439981,-490.0,0.00026713,4]
[366755161,1750433439991,-631.33972078,0.00026713,4]
[366755164,1750433440005,-490.0,0.00026713,4]
[366755166,1750433440015,-490.0,0.00026713,4]
[366755168,1750433440024,-490.0,0.00026713,4]
[366755170,1750433440034,-490.0,0.00026713,4]
[366755172,1750433440046,-490.0,0.00026713,4]
[366755174,1750433440056,-490.0,0.00026713,4]
[366755176,1750433440066,-1060.79,0.00026713,4]
[366755178,1750433440076,-490.0,0.00026713,4]
[366755180,1750433440087,-572.98858885,0.00026713,4]
[366755182,1750433440097,-490.0,0.00026713,4]